Cogmind - Beta 13 @@@ ROGUE MODE // 2024.04.05 @ 23:20:03 Player: m1m1c Result: Destroyed by G-34 Mercenary with Small Laser Performance ------------- Evolutions (1) 500 Regions Visited (2) 400 Robots Destroyed (2) 10 Value Destroyed (50) 50 Prototype IDs (0) 0 Alien Tech Used (0) 0 Bonus (0) 0 TOTAL SCORE: 960 Bonus ------- None Cogmind --------- Core Integrity 0/400 Matter 285/300 Energy 100/100 System Corruption 0% Temperature Cool (6) Movement Core (50) Location -9/Materials Parts ------- > --- POWER (1) -------- (None) > --- PROPULSION (3) --- (None) > --- UTILITY (3) ------ Visual Processing Unit Signal Interpreter > --- WEAPON (2) ------- (None) > --- INVENTORY (5) ---- (None) Peak State ------------ > --- POWER ------------ Light Ion Engine > --- PROPULSION ------- Aluminum Leg Aluminum Leg > --- UTILITY ---------- Heat Sink Small Storage Unit > --- WEAPON ----------- Small Laser Small Laser > --- INVENTORY -------- Aluminum Leg [Rating: 7] Favorites ----------- Power Light Ion Engine Engine Light Ion Engine Propulsion Aluminum Leg Leg Aluminum Leg Hover Unit Hover Unit Utility Small Storage Unit Device Heat Sink Storage Small Storage Unit Processor Visual Processing Unit Weapon Small Laser Energy Gun Small Laser Build | -11 -10 -9 ------- Run | Yrd Mat Mat Slots Evolved 2 | . . 2 Power . | . . . Propulsion 1 | . . 1 Utility 1 | . . 1 Weapon . | . . . Parts Attached 13 | 5 4 4 Power 1 | 1 . . Engine 1 | 1 . . Core . | . . . Reactor . | . . . Propulsion 5 | 2 2 1 Treads . | . . . Leg 4 | 2 2 . Wheel . | . . . Hover 1 | . . 1 Flight . | . . . Utility 4 | 1 1 2 Device 1 | . 1 . Storage 1 | 1 . . Processor 2 | . . 2 Hackware . | . . . Protection . | . . . Artifact . | . . . Weapon 3 | 1 1 1 Energy Gun 3 | 1 1 1 Energy Cannon . | . . . Ballistic Gun . | . . . Ballistic Cannon . | . . . Launcher . | . . . Special Weapon . | . . . Impact Weapon . | . . . Slashing Weapon . | . . . Piercing Weapon . | . . . Special Melee Weapon . | . . . Unidentified Prototypes . | . . . Parts Lost 11 | . 6 5 Power 1 | . 1 . Propulsion 5 | . 3 2 Utility 2 | . . 2 Weapon 3 | . 2 1 Highest Loss Streak 5 | . 5 5 To Critical Strikes 1 | . . 1 Average Slot Usage (%) 60 | . 77 33 Engine 4 | . 7 . Leg 18 | . 26 6 Device 9 | . 10 7 Storage 12 | . 14 11 Processor 1 | . . 4 Energy Gun 12 | . 18 2 Naked Turns . | . . . Heaviest Build 11 | 9 11 7 Greatest Support 20 | 20 20 10 Greatest Overweight (x) 2 | . . 2 Average Overweight (x) . | . . . Largest Inventory Capacity 8 | 8 8 8 Average Capacity 7 | 7 8 7 Most Carried 3 | . 2 3 Average Carried . | . . . Final Capacity 8 | 8 8 5 Final Carried . | . . . Class Distribution -------------------- 100% | Mutant Dominant Class ---------------- Mutant | -10/Materials Mutant | -9/Materials Resources | -11 -10 -9 ----------- Run | Yrd Mat Mat Matter Collected 225 | 178 33 14 Remotely . | . . . Salvage Created 49 | . 33 16 Parts 6 | . 3 3 Haulers Intercepted . | . . . Recyclers Shooed . | . . . Parts Field Recycled . | . . . Retrieved Matter . | . . . Parts Self-Destructed . | . . . Prevented . | . . . Kills | -11 -10 -9 ------- Run | Yrd Mat Mat Combat Hostiles Destroyed 1 | . 1 . Guns 1 | . 1 . Classes Destroyed 2 | . 1 1 Watcher 1 | . . 1 Grunt 1 | . 1 . Best Kill Streak 1 | . 1 1 Combat Bots Only 1 | . 1 . Max Kills in Single Turn 1 | . 1 1 Gunslinging . | . . . Exploded . | . . . Melee . | . . . Uniques/NPCs Destroyed . | . . . Combat | -11 -10 -9 -------- Run | Yrd Mat Mat Hostile Shots Fired 230 | . 94 136 Missed 74 | . 28 46 Damage Taken 1433 | . 731 702 Core 618 | . 207 411 Absorbed by Shields . | . . . Core Remaining (%) 58 | 100 17 . Volleys Fired 13 | . 12 1 Largest 1 | . 1 1 Hottest 40 | . 40 40 Shots Fired 13 | . 12 1 Gun 13 | . 12 1 Cannon . | . . . Launcher . | . . . Special . | . . . Kinetic . | . . . Thermal 13 | . 12 1 Explosive . | . . . Electromagnetic . | . . . Robot Hit Streak 9 | . 8 9 Robot Miss Streak 4 | . 4 . Penetration Max . | . . . Secondary Targets . | . . . Shots Hit Robots 9 | . 8 1 Core Hits 5 | . 4 1 Critical Kills . | . . . Critical Parts Destroyed . | . . . Critical Strikes . | . . . Melee Attacks . | . . . Impact . | . . . Slashing . | . . . Piercing . | . . . Sneak Attacks . | . . . Combat Hostiles . | . . . Follow-up Attacks . | . . . Damage Inflicted 129 | . 117 12 Guns 101 | . 89 12 Cannons . | . . . Explosions . | . . . Melee . | . . . Ramming 28 | . 28 . Kinetic . | . . . Thermal 101 | . 89 12 Explosive . | . . . Electromagnetic . | . . . Impact . | . . . Slashing . | . . . Piercing . | . . . Highest Corruption . | . . . Average Corruption . | . . . Corruption Purged . | . . . Corruption Blocked . | . . . Overload Shots . | . . . Overflow Damage . | . . . Projectiles . | . . . Explosions . | . . . Melee . | . . . Knockbacks 1 | . 1 . Impact 1 | . 1 . Kinetic . | . . . Secondary . | . . . Self-Inflicted Damage 1 | . 1 . Shots . | . . . Rammed 2 | . 1 1 Targets Rammed 15 | . 14 1 Kicked 13 | . 13 . Crushed . | . . . Highest Temperature 48 | . 48 . Average Temperature 27 | . 27 . Received Heat Transfer 402 | . 396 6 Siege Activations . | . . . Robots Corrupted . | . . . Combat Hostiles . | . . . Parts Fried . | . . . Impact Corruptions . | . . . Robots Melted . | . . . Combat Hostiles . | . . . Parts Melted . | . . . Heat Transferred 225 | . 200 25 Parts Sabotaged . | . . . Parts Stolen . | . . . Parts Stripped . | . . . Power Chain Reactions . | . . . Alert | -11 -10 -9 ------- Run | Yrd Mat Mat Peak Influence 115 | . 115 49 Initial 27 | . . 27 Average 40 | . 58 27 Maximum Alert Level . | . . . Low Security (%) 100 | 100 100 100 Level 1 . | . . . Level 2 . | . . . Level 3 . | . . . Level 4 . | . . . Level 5 . | . . . High Security . | . . . Max Security . | . . . Squads Dispatched 5 | . 3 2 Investigation 2 | . 1 1 Extermination . | . . . Reinforcement 3 | . 2 1 Assault . | . . . Garrison . | . . . Intercept . | . . . Searches Triggered . | . . . Construction Impeded . | . . . Haulers Reinforced . | . . . Active Scanning Responses . | . . . Cargo Convoy Interrupts . | . . . Stealth | -11 -10 -9 --------- Run | Yrd Mat Mat Distress Signals 2 | . 2 . Communications Jammed . | . . . Distress Signals . | . . . Times Spotted 27 | . 12 15 Peak Tracking Total 8 | . 6 8 Tactical Retreats 2 | . 2 . Traps | -11 -10 -9 ------- Run | Yrd Mat Mat Traps Triggered 2 | . 1 1 Indirectly . | . . . Trap Hack Attempts . | . . . Triggered . | . . . Disarmed . | . . . Reprogrammed . | . . . Reused . | . . . Traps Extracted . | . . . Installed . | . . . Triggered . | . . . Machines | -11 -10 -9 ---------- Run | Yrd Mat Mat Machines Disabled . | . . . Max in Single Turn . | . . . Machines Repaired . | . . . Machines Dismantled . | . . . Machines Sabotaged . | . . . Overloaded Fab Kills . | . . . Hacking | -11 -10 -9 --------- Run | Yrd Mat Mat Machines Accessed . | . . . Terminals . | . . . Fabricators . | . . . Repair Stations . | . . . Recycling Units . | . . . Scanalyzers . | . . . Garrison Access . | . . . Total Hacks . | . . . Successful . | . . . Failed . | . . . Catastrophic . | . . . Database Lockouts . | . . . Manual . | . . . Terminals . | . . . Fabricators . | . . . Repair Stations . | . . . Recycling Units . | . . . Scanalyzers . | . . . Garrison Access . | . . . Terminal Hacks . | . . . Fabricator Hacks . | . . . Repair Station Hacks . | . . . Recycling Unit Hacks . | . . . Scanalyzer . | . . . Garrison Access Hacks . | . . . Unauthorized Hacks . | . . . Terminals . | . . . Fabricators . | . . . Repair Stations . | . . . Recycling Units . | . . . Scanalyzers . | . . . Garrison Access . | . . . Data Cores Recovered . | . . . Used . | . . . Hacking Detections . | . . . Full Trace Events . | . . . Feedback Events . | . . . Feedback Blocked . | . . . Robot Schematics Acquired . | . . . Robots Built . | . . . Authchips . | . . . Time . | . . . Total Robot Build Rating . | . . . Part Schematics Acquired . | . . . Parts Built . | . . . Authchips . | . . . Time . | . . . Total Part Build Rating . | . . . Parts Repaired . | . . . Time . | . . . Parts Recycled . | . . . Recycled Matter . | . . . Retrieved Matter . | . . . Retrieved Components . | . . . Parts Scanalyzed . | . . . Part Schematics Acquired . | . . . Parts Damaged . | . . . Bothacking | -11 -10 -9 ------------ Run | Yrd Mat Mat Used RIF Installer . | . . . Robots Hacked . | . . . Non-combat . | . . . Combat . | . . . Robot Hacks Applied . | . . . Relay Couplers Released . | . . . Fabnet Peak Effective % . | . . . Robots Rewired . | . . . Allies Hacked . | . . . Hacks Repelled . | . . . Allies | -11 -10 -9 -------- Run | Yrd Mat Mat Total Allies . | . . . Largest Group . | . . . Highest-Rated Group . | . . . Highest-Rated Ally . | . . . Total Orders . | . . . Ally Attacks . | . . . Total Damage . | . . . Kills . | . . . Allies Corrupted . | . . . Allies Melted . | . . . Intel | -11 -10 -9 ------- Run | Yrd Mat Mat Robot Analysis Total . | . . . Derelict Logs Recovered . | . . . Drone Launches . | . . . Drone Recoveries . | . . . Exploration | -11 -10 -9 ------------- Run | Yrd Mat Mat Turns Passed 534 | 73 281 180 Spaces Moved 413 | 57 195 161 Core 48 | 3 . 45 Treads . | . . . Legs 340 | 54 195 91 Wheels . | . . . Hover 25 | . . 25 Flight . | . . . Fastest Speed 50 | 50 120 50 Average Speed 113 | 116 120 104 Slowest Speed 150 | 120 120 150 Overloaded Moves . | . . . Propulsion Burnouts . | . . . Robots Hopped . | . . . Cave-ins Triggered . | . . . Exploration Rate (%) 17 | 3 36 13 Regions Visited 2 Branch Regions . Pre-discovered Areas . | . . . Known Exits Taken . | . . . Unknown Exits Taken 2 | 1 1 . Scrap Searched . | . . . Spaces Dug . | . . . Terrain Destroyed . | . . . Melee . | . . . Projectile . | . . . AOE . | . . . Terrain Rammed . | . . . Walls Destroyed . | . . . Machines Disabled . | . . . Actions | -11 -10 -9 --------- Run | Yrd Mat Mat Total 457 | 61 226 170 Wait . | . . . Move 411 | 56 194 161 Hop . | . . . Pick Up 5 | . 2 3 Fast Attach 8 | 5 2 1 Attach 5 | . 2 3 Detach . | . . . Swap . | . . . Drop . | . . . Fire 13 | . 12 1 Melee . | . . . Ram 2 | . 1 1 Kick 13 | . 13 . Crush . | . . . Escape Stasis . | . . . Rewire . | . . . Trap . | . . . Miscellaneous . | . . . Route ------- -11/Scrapyard -10/Materials (discovered 2 exits: [*Mat] / [*Min]) -9/Materials History --------- Turn | Location | Event 7 | -11/Scrapyard | Discovered new exit (range 16) 74 | -11/Scrapyard | Entered Materials 215 | -10/Materials | Discovered new exit (range 8) 299 | -10/Materials | Core integrity fell below 50% 320 | -10/Materials | Build established: Mutant 327 | -10/Materials | Core integrity fell below 20% 351 | -10/Materials | Discovered new exit (range 3) 355 | -10/Materials | Lost 5 parts (3n2w) 355 | -10/Materials | Entered another Materials area 355 | -9/Materials | Evolved 2 slots: Propulsion x1, Utility x1 495 | -9/Materials | Core integrity fell below 50% 519 | -9/Materials | Core integrity fell below 20% 535 | -9/Materials | Destroyed by G-34 Mercenary with Small Laser Last Messages --------------- S-10 Pest destroyed. K-01 Serf collects debris. R-06 Scavenger collects Flight Unit. Hover Unit destroyed. K-01 Serf collects debris. O-16 Technician: "IFF HANDSHAKE FAILED. SECURING TERMINAL." K-01 Serf collects debris. R-06 Scavenger collects Lgt. Assault Rifle. K-01 Serf collects debris. Slammed into K-01 Serf. Triggered Alarm Trap. An alarm sounds. ALERT: Alarm triggered, dispatching investigation squad. ALERT: Hostiles spotted, dispatching reinforcements to Terminal M002. Sml. Storage Unit destroyed. Atomic Centrifuge disabled. U-05 Engineer lays Concrete. Map ----- +----------------------------------------------------+ | ??????????????????????? """??# #???????? | | ?????????????????????? ""S"" #% #???????? | | ?????????????????????? "" "" + #???????? | | ?????????????????????# # #???????? | | ?????????????????????#[ = ??# #???????? | | ?????????????????????####????#% #???????? | | ????????????????????########## #???????? | | ????????????????????# %= #% #???????? | | ????????????????????# == * # #???????? | | ????????????????????# # #???????? | | ????????????????????? ! ?# #???????? | | ????????????????????? ?# %#???????? | | ????????????###??????? ??# #???????? | | ????????????? k ?????? ??# #???????? | | ??????????????# ?????? ???# #???????? | | ??????????????# u ????? ???# #???????? | | ??????????????# ug???##+##### #???????? | | ???????????????# g#### #???????? | | ???????????????# Ygg u #???????? | | ???????????????# #???????? | | ???????????????# s########???????? | | ???????????????# " " s#??????????????? | | ???????????????# """ #??????????????? | | ???????????????# """ #??????????????? | | ???????????????# #??????????????? | | ???????????????# @#??????????????? | | ???????????????# = #??????????????? | | ???????????????####"T"#T# #??????????????? | | ??????????????????####### #??????????????? | | ????????????????????????# #??????????????? | | ????????????????????????# #??????????????? | | ????????????????????????# #??????????????? | | ????????????????????????# #??????????????? | | ????????????????????????# #??????????????? | | ????????????????????????#u#??????????????? | | ????????????????????????? ???????????????? | | ????????????????????????? ???????????????? | | ????????????????????????? ???????????????? | | ?????????????????????????a???????????????? | | ????????????????????????? ???????????????? | | ????????????????????????? ???????????????? | | ????????????????????????? ???????????????? | | ????????????????????????? ???????????????? | | ?????????????????????????????????????????? | | ?????????????????????????????????????????? | | ?????????????????????????????????????????? | | ?????????????????????????????????????????? | | ?????????????????????????????????????????? | | ?????????????????????????????????????????? | | ?????????????????????????????????????????? | +----------------------------------------------------+ Best States ------------- Heat Dissipation 38 Energy Generation 10 Energy Capacity 125 Matter Stores 300 Matter Capacity 300 Sight Range 18 Terrain Scan Density 10 Evasion (%) 55 Item Schematics ----------------- None Robot Schematics ------------------ None Fabricated ------------ Nothing Alien Tech Used ----------------- None Achievements -------------- None Challenges ------------ None Game ------ Seed SwarmTripodDetonator Manual? 0 Play Time 00:05:53 Cumulative 7.2 hours Start 2024.04.05 @ 16:07:27 End 2024.04.05 @ 23:20:03 Sessions 1 Manual Loads 0 Difficulty Rogue Special Mode None Game No. 27 Rogue 27 Adventurer 0 Explorer 0 Win Type - Total 0 Types 0/0/0/0/0/0/0/0/0 Lore% 6 Gallery% 12 Achievement% 10 Wizard Run 0 Options --------- Layout 1 ASCII 1 Keyboard 0 Movement Arrows Keybinds 0 Fullscreen 1 Font 18/SmallcapsGlow Map View 50x40 Zoom Use 0% Tactical HUD 0 Map Filters NONE Filters NONE Steam 1 RUN: a4d6ab05-fbb2-4ea4-8a4e-81fff70466cf